bitfinex/quotes_ETHUSD_20241023
["timestamp","ask_amount","ask_price","bid_price","bid_amount"]
[1729695432078,3.90185,2562.9,2562.5,4.03897147]
[1729695432386,3.90156,2563.1,2562.7,3.90211]
[1729695432546,3.90156,2563.1,2562.8,0.8078]
[1729695432748,3.90274,2562.3,2562.2,0.07008614]
[1729695432982,3.90313,2562.1,2561.9,0.24411399]
[1729695433150,3.90303,2562.2,2561.7,0.8078]
[1729695433351,3.90303,2562.2,2561.8,0.24412586]
[1729695433554,3.9028,2562.3,2561.8,3.90349]
[1729695433755,3.9028,2562.3,2561.9,0.07805693]
[1729695433965,3.90245,2562.5,2562.1,0.8108]
[1729695434163,3.90245,2562.5,2562.2,0.05853933]
[1729695434485,3.90245,2562.5,2562.1,0.8108]
[1729695434486,3.9026,2562.4,2562.1,0.8108]
[1729695435171,3.9026,2562.4,2562.0,0.07805173]
[1729695435172,3.90276,2562.3,2561.9,0.86934691]
[1729695435784,0.61086821,2562.5,2561.9,0.86934691]
[1729695435945,3.90259,2562.4,2561.9,0.86934691]
[1729695436145,3.90281,2562.3,2562.0,0.07805949]
[1729695436388,0.61086821,2562.5,2561.9,4.77262691]
[1729695436691,3.90265,2562.4,2562.0,0.05853704]
[1729695436894,3.90265,2562.4,2562.0,3.96171704]
[1729695437076,3.90265,2562.4,2562.0,0.05853704]
[1729695437611,0.61086821,2562.5,2562.0,0.05853704]
[1729695437751,3.90269,2562.4,2562.0,0.05853704]
[1729695437952,3.90281,2562.3,2562.0,0.13659228]
[1729695439061,3.90281,2562.3,2562.0,0.05853704]
[1729695439562,3.90281,2562.3,2562.0,0.13659232]
[1729695441091,3.90281,2562.3,2562.0,0.05853704]
[1729695441295,3.90304,2562.1,2562.0,0.05853704]
[1729695441497,3.9029,2562.2,2562.0,0.05853704]
[1729695441705,4.51340821,2562.5,2562.0,0.13659571]
[1729695442010,3.9026,2562.4,2562.0,4.03977571]
[1729695442217,3.9026,2562.4,2562.0,4.91517228]
[1729695442382,3.9026,2562.4,2562.0,4.91512228]
[1729695443276,3.9026,2562.4,2562.0,4.91510228]
[1729695443475,3.9026,2562.4,2562.0,8.81822228]
[1729695443678,3.9026,2562.4,2562.1,0.07805183]
[1729695444218,3.90281,2562.3,2562.1,0.07805183]
[1729695444508,3.9026,2562.4,2562.0,4.03969042]
[1729695444681,3.90208,2562.8,2562.4,3.90252]
[1729695444885,0.8114,2563.2,2562.5,0.07804443]
[1729695445070,3.90224,2562.7,2562.5,0.0585313]
[1729695445273,3.90228,2562.6,2562.5,0.0585313]
[1729695446186,3.90216,2562.7,2562.5,0.0585313]
[1729695446390,3.902,2562.8,2562.5,0.0585313]
[1729695446727,3.90222,2562.7,2562.5,0.0585313]
[1729695447019,3.90228,2562.6,2562.5,0.0585313]
[1729695447697,3.90198,2562.8,2562.5,0.0585313]
[1729695447698,3.9022,2562.7,2562.5,0.0585313]
[1729695448987,3.90228,2562.6,2562.5,0.0585313]
[1729695449304,7.46785014,2563.1,2562.5,0.0585313]
[1729695449506,3.90221,2562.7,2562.5,0.0585313]
[1729695449912,3.90228,2562.6,2562.5,0.0585313]
[1729695450209,3.90274,2562.3,2562.0,0.88413704]
[1729695450582,3.90254,2562.5,2562.0,4.78724704]
[1729695450906,3.90271,2562.4,2562.0,0.88413704]
[1729695451494,3.90271,2562.4,2562.0,4.78731704]
[1729695452300,3.90271,2562.4,2562.0,0.88413704]
[1729695453688,3.90254,2562.5,2562.0,4.86538236]
[1729695453876,3.90254,2562.5,2562.0,4.86531236]
[1729695454120,14.91192,2562.9,2562.4,3.90249]
[1729695454325,14.91192,2562.9,2562.4,7.805]
[1729695454580,18.81383,2562.9,2562.4,3.90249]
[1729695454861,14.91191,2562.9,2562.6,0.8045]
[1729695455468,3.90168,2563.0,2562.6,4.70676]
[1729695455760,3.90168,2563.0,2562.6,4.76529086]
[1729695455927,3.90137,2563.2,2562.7,3.90199]
[1729695456263,3.90167,2563.1,2562.6,4.76528086]
[1729695456823,3.90167,2563.1,2562.6,4.76524086]
[1729695458137,8.29869014,2563.4,2562.7,3.90202]
[1729695458369,3.90138,2563.2,2562.6,0.86303086]
[1729695458670,3.90137,2563.2,2562.8,3.90196]
[1729695459642,3.90137,2563.2,2562.6,4.76525086]
[1729695459643,3.90159,2563.1,2562.6,8.66745086]
[1729695459842,3.90159,2563.1,2562.7,3.90204]
[1729695460265,3.90139,2563.2,2562.7,4.76876709]
[1729695460656,3.90153,2563.1,2562.7,4.76876709]
[1729695461613,3.90192,2562.9,2562.6,0.8045]
[1729695461787,3.56632014,2563.2,2562.6,0.8045]
[1729695461788,3.90213,2562.7,2562.6,0.8045]
[1729695462277,3.90213,2562.7,2562.4,0.7947]
[1729695462491,3.902,2562.8,2562.4,0.7947]
[1729695462776,3.90198,2562.8,2562.5,0.05852153]
[1729695463458,3.90184,2562.9,2562.5,0.05852153]
[1729695463854,3.90169,2563.0,2562.5,3.96093153]
[1729695464072,3.90169,2563.0,2562.6,3.90219]
[1729695464383,3.90169,2563.0,2562.6,3.98022577]
[1729695464544,7.80299,2563.2,2562.7,3.90211]
[1729695464744,3.90147,2563.2,2562.7,3.90211]
[1729695464958,3.90155,2563.1,2562.7,3.90211]
[1729695466088,3.90169,2563.0,2562.6,3.9803057]
[1729695466792,3.90153,2563.1,2562.7,3.90213]
[1729695468963,4.73239,2563.4,2562.8,4.78893581]
[1729695469162,7.80234,2563.4,2562.9,3.90175]
[1729695469585,3.90143,2563.2,2562.8,4.7109]
[1729695469901,3.90143,2563.2,2562.8,8.69083124]
[1729695470100,3.90143,2563.2,2562.8,4.7109]
[1729695470404,3.90143,2563.2,2562.8,4.78893125]
[1729695472481,3.90143,2563.2,2562.8,5.74228312]
[1729695474488,3.90092,2563.5,2562.8,1.84038312]
[1729695474686,7.80194,2563.5,2563.1,3.90142]
[1729695474913,4.34092014,2563.8,2562.8,4.71097]
[1729695474914,3.90147,2563.2,2562.8,4.71097]
[1729695475094,3.90147,2563.2,2562.8,0.809]
[1729695475400,7.80284,2563.2,2562.8,0.809]
[1729695475599,3.90137,2563.2,2562.8,0.809]
[1729695475800,3.90137,2563.2,2562.8,4.71096]
[1729695475984,3.90124,2563.3,2562.9,3.9018]
[1729695476221,3.90117,2563.4,2562.9,3.97982828]
[1729695476535,3.90124,2563.3,2562.9,3.97982828]
[1729695476904,3.90124,2563.3,2562.9,0.07802828]
[1729695477290,7.80232,2563.4,2562.9,3.97976828]
[1729695477802,3.90122,2563.3,2563.0,0.05851767]
[1729695478197,3.90115,2563.4,2563.0,0.05851767]
[1729695478384,3.90139,2563.2,2563.0,0.05851767]
[1729695478589,3.90152,2563.1,2563.0,0.05851767]
[1729695478899,3.90139,2563.2,2563.0,0.05851767]
[1729695479098,7.8029,2563.2,2563.0,0.05851767]
[1729695479300,3.90139,2563.2,2563.0,0.05851767]
[1729695479706,7.80291,2563.2,2563.0,0.05851767]
[1729695480115,3.90139,2563.2,2562.8,0.809]
[1729695480289,3.90139,2563.2,2562.8,4.71097]
[1729695480918,7.80285,2563.2,2562.8,4.71097]
[1729695481119,3.90153,2563.1,2562.8,0.809]
[1729695481792,3.90122,2563.3,2562.8,4.71098]
[1729695482130,3.90122,2563.3,2562.9,3.90182]
[1729695482995,3.90122,2563.3,2563.0,0.05851964]
[1729695483306,3.90114,2563.4,2563.0,0.05851964]
[1729695483628,3.90114,2563.4,2563.0,3.96012964]
[1729695483829,3.90114,2563.4,2563.0,4.83501975]
[1729695485156,7.80235,2563.4,2563.0,0.93340975]
[1729695485372,3.90114,2563.4,2563.0,3.96014964]
[1729695487729,3.90114,2563.4,2563.0,3.96012964]
[1729695489275,7.8023,2563.4,2563.0,3.96012964]
[1729695489793,7.8023,2563.4,2563.0,0.05851964]
[1729695490092,7.80229,2563.4,2563.0,0.05851964]
[1729695490492,3.90114,2563.4,2562.9,0.07802839]
[1729695490786,3.90137,2563.2,2562.8,4.71095]
[1729695491162,3.90114,2563.4,2562.9,3.90177]
[1729695491364,3.90114,2563.4,2562.8,4.7109]
[1729695491571,3.90137,2563.2,2562.8,0.809]
[1729695491774,3.90137,2563.2,2562.8,4.71096]
[1729695491981,7.80285,2563.2,2562.8,4.71096]
[1729695492490,3.90137,2563.2,2562.8,4.71096]
[1729695492659,7.80284,2563.2,2562.8,4.71096]
[1729695493185,3.90137,2563.2,2562.8,4.71096]
[1729695493683,3.90137,2563.2,2562.8,4.7109]
[1729695493988,7.80284,2563.2,2562.8,4.71089]
[1729695494158,3.90137,2563.2,2562.8,4.71089]
[1729695494685,3.90154,2563.1,2562.8,0.809]
[1729695495695,7.80268,2563.3,2562.8,4.78894598]
[1729695495855,7.80268,2563.3,2562.8,5.65805258]
[1729695496052,3.9013,2563.3,2562.8,5.65805258]
[1729695496258,5.6560275,2563.4,2563.0,3.96009066]
[1729695496456,5.6560275,2563.4,2563.0,4.0381136]
[1729695496654,3.90093,2563.5,2563.1,3.90151]
[1729695496851,1.7549675,2563.4,2563.1,3.90151]
[1729695497091,1.7549675,2563.3,2563.0,4.92189368]
[1729695497295,1.7549675,2563.2,2563.0,0.05852066]
[1729695497591,1.7549675,2563.2,2562.8,5.5800166]
[1729695497592,5.6563975,2563.2,2562.8,5.5800166]
[1729695497800,3.90143,2563.2,2562.8,5.65804686]
[1729695498152,3.90143,2563.2,2562.8,5.5800166]
[1729695498364,5.6563975,2563.2,2562.8,5.65804687]
[1729695498596,5.6563975,2563.2,2562.8,0.809]
[1729695498893,9.5078775,2563.2,2562.8,0.809]
[1729695499455,5.6063975,2563.2,2562.8,4.71097]
[1729695499792,5.6063975,2563.2,2562.8,4.7890003]
[1729695500151,5.6063975,2563.2,2562.8,4.7889603]
[1729695500458,5.6565675,2563.1,2562.8,0.809]
[1729695501891,5.6563475,2563.2,2562.8,4.78899051]
[1729695502789,1.7549675,2563.2,2562.8,0.88703051]
[1729695502997,5.6564075,2563.2,2562.8,4.78897051]
[1729695503556,3.90153,2563.1,2562.8,0.88703051]
[1729695504070,5.6563675,2563.2,2562.8,0.88703051]
[1729695504402,5.6563675,2563.2,2562.8,5.26787456]
[1729695504563,3.9016,2563.1,2562.8,1.36594456]
[1729695505498,5.6563675,2563.2,2562.8,5.26788456]
[1729695505795,9.5578575,2563.2,2562.8,1.36594456]
[1729695506168,3.90159,2563.1,2562.8,1.36594456]
[1729695506729,3.9017,2563.0,2562.8,0.809]
[1729695506867,3.90182,2562.9,2562.8,0.809]
[1729695507901,3.90182,2562.9,2562.5,3.96083153]
[1729695507902,5.6567875,2562.9,2562.6,0.7585]
[1729695508077,3.90213,2562.7,2562.6,0.7585]
[1729695508276,5.6570975,2562.7,2562.6,0.7585]
[1729695508467,3.90213,2562.7,2562.6,0.7585]
[1729695508667,5.6569475,2562.8,2562.6,0.7585]
[1729695508971,3.90213,2562.7,2562.6,0.7585]
[1729695510192,5.6570975,2562.7,2562.5,0.05852153]
[1729695511113,3.9025,2562.5,2562.2,0.8125]
[1729695512208,5.6574675,2562.5,2562.2,0.8125]
[1729695512418,5.6574675,2562.5,2562.2,1.284067]
[1729695512576,5.6572475,2562.6,2562.2,1.284067]
[1729695513218,1.7549675,2562.5,2562.2,1.284067]
[1729695513420,1.7549675,2562.3,2562.2,0.8125]
[1729695513585,5.6578175,2562.3,2561.9,4.70125]
[1729695513907,3.90266,2562.4,2561.9,0.798]
[1729695513908,1.7549675,2562.0,2561.9,0.798]
[1729695514110,3.90214,2562.7,2561.9,0.85654093]
[1729695514111,0.8,2562.3,2561.9,0.85654093]
[1729695514316,5.6581675,2562.0,2561.9,0.05854093]
[1729695515190,1.7549675,2562.0,2561.9,0.05854093]
[1729695515913,1.7549675,2562.1,2561.9,0.05854093]
[1729695516070,5.6578175,2562.3,2561.9,3.96187093]
[1729695516270,4.65473,2562.7,2562.2,3.90278]
[1729695516467,3.90245,2562.5,2562.0,1.15799323]
[1729695516673,3.90271,2562.4,2562.0,0.754]
[1729695516911,1.7549675,2562.2,2562.0,0.754]
[1729695517314,1.7549675,2562.1,2561.9,0.05854093]
[1729695517518,5.6580975,2562.1,2561.9,0.05854093]
[1729695517812,1.7549675,2562.0,2561.9,0.05854093]
[1729695518192,3.90305,2562.1,2561.9,0.05854093]
[1729695518193,5.6580175,2562.1,2561.9,0.05854093]
[1729695518517,3.90305,2562.1,2561.9,0.05854093]
[1729695518680,3.90274,2562.3,2561.9,0.05854093]
[1729695518883,3.90292,2562.2,2561.9,0.05854093]
[1729695520499,3.90306,2562.1,2561.9,0.05854093]
[1729695520717,3.9032,2562.0,2561.9,0.53796015]
[1729695521018,3.9032,2562.0,2561.9,0.05854093]
[1729695521596,8.23722552,2562.0,2561.9,0.05854093]
[1729695521815,4.669,2562.0,2561.9,0.05854093]
[1729695522018,3.9032,2562.0,2561.9,0.05854093]
[1729695522521,0.7703,2561.8,2561.0,0.7591]
[1729695522698,3.90372,2561.7,2561.2,3.90433]
[1729695522895,3.90372,2561.7,2561.3,0.78088]
[1729695523307,3.90372,2561.7,2561.3,4.68512]
[1729695523690,3.90372,2561.7,2561.4,0.05855482]
[1729695524322,8.24204552,2561.8,2561.3,0.78088]
[1729695524532,8.24204552,2561.8,2560.7,0.7657]
[1729695524533,3.90419,2561.4,2560.9,3.90483]
[1729695524689,3.90433,2561.3,2561.0,0.390483]
[1729695525619,3.90442,2561.2,2561.0,0.390483]
[1729695525831,3.90442,2561.2,2560.7,4.67086]
[1729695526041,3.90466,2561.1,2560.7,4.67086]
[1729695526210,3.9048,2561.0,2560.7,0.7657]
[1729695526410,3.9048,2561.0,2560.7,0.0585671]
[1729695526411,3.90496,2560.9,2560.7,0.0585671]
[1729695526732,7.47264552,2561.2,2560.7,0.0585671]
[1729695526733,3.9045,2561.2,2560.7,0.0585671]
[1729695526935,3.9042,2561.4,2560.9,4.70498]
[1729695527139,3.90437,2561.3,2561.0,0.860997]
[1729695528130,7.80873,2561.3,2561.0,0.860997]
[1729695528331,7.80873,2561.3,2560.9,0.87828757]
[1729695528332,3.90436,2561.3,2560.9,0.87828757]
[1729695528632,3.90397,2561.5,2561.0,3.9047]
[1729695528835,3.90413,2561.4,2560.9,4.70506]
[1729695529000,3.90413,2561.4,2560.9,5.65000442]
[1729695529641,3.90413,2561.4,2560.9,1.74514442]
[1729695530003,3.90397,2561.5,2560.9,1.74514442]
[1729695530204,3.90397,2561.5,2561.0,3.90472]
[1729695530406,7.80806,2561.5,2561.0,3.90472]
[1729695530711,3.90382,2561.6,2561.0,4.86019044]
[1729695530894,3.90404,2561.5,2561.0,4.86019044]
[1729695531102,3.90404,2561.5,2561.0,8.84298432]
[1729695531324,3.90404,2561.5,2561.0,4.86019044]
[1729695531536,3.90404,2561.5,2561.0,4.93827434]
[1729695531733,3.90404,2561.5,2561.1,0.57384743]
[1729695532233,3.90404,2561.5,2561.1,4.47840743]
[1729695533743,3.90404,2561.5,2561.1,0.57384743]
[1729695533907,7.8081,2561.5,2561.0,3.90471]
[1729695534244,7.8081,2561.5,2561.0,3.98279612]
[1729695534434,3.90404,2561.5,2561.0,3.98279612]
[1729695534612,3.90404,2561.5,2561.0,3.90471]
[1729695534945,3.90404,2561.5,2561.1,4.765525]
[1729695535346,3.90404,2561.5,2561.1,0.860975]
[1729695535520,7.8081,2561.5,2561.1,0.860975]
[1729695535715,3.90412,2561.4,2561.1,0.860975]
[1729695536546,3.90404,2561.5,2561.1,0.860975]
[1729695537122,3.90338,2561.9,2561.4,3.904]
[1729695537322,18.81688,2561.9,2561.4,3.90401]
[1729695537631,14.91338,2561.9,2561.4,3.90401]
[1729695537842,11.01,2561.9,2561.6,0.8302]
[1729695538036,11.01,2561.9,2561.6,5.597812]
[1729695538353,11.01,2562.1,2562.0,4.6749]
[1729695538560,3.90265,2562.4,2562.0,0.7717]
[1729695538761,7.80539,2562.4,2562.0,1.239203]
[1729695539047,3.90265,2562.4,2562.0,1.239203]
[1729695539255,7.80534,2562.4,2562.0,1.239203]
[1729695539448,7.80534,2562.4,2562.1,0.0585411]
[1729695539449,3.90265,2562.4,2562.1,0.0585411]
[1729695539744,3.9028,2562.3,2562.0,1.239203]
[1729695539953,3.90311,2562.1,2561.8,0.8027]
[1729695540131,3.90311,2562.1,2561.9,0.05854749]
[1729695540448,3.90368,2561.7,2561.3,0.8027]
[1729695540866,3.90382,2561.6,2561.3,0.8027]
[1729695541017,3.90382,2561.6,2561.3,1.27925904]
[1729695541451,3.90382,2561.6,2561.3,0.8027]
[1729695541772,3.9036,2561.8,2561.3,0.8027]
[1729695541940,3.90382,2561.6,2561.3,0.8027]
[1729695542722,3.90399,2561.5,2561.3,0.8027]
[1729695543420,3.0,2561.9,2561.3,4.70687]
[1729695543620,6.90339,2561.9,2561.5,3.90388]
[1729695543920,6.90339,2561.9,2561.4,4.38839122]
[1729695545059,17.91339,2561.9,2561.4,4.38839122]
[1729695545553,11.01,2561.9,2561.6,3.90377]
[1729695545740,11.01,2561.9,2561.6,0.83701413]
[1729695546053,14.91344,2561.9,2561.5,0.07807006]
[1729695546752,3.90365,2561.7,2561.3,0.8027]
[1729695546956,3.90402,2561.5,2561.2,0.05856038]
[1729695549450,7.8075,2561.7,2561.2,4.04103452]
[1729695549752,14.91348,2561.9,2561.3,0.87535145]
[1729695549951,14.91348,2561.9,2561.4,3.904]
[1729695549952,3.90353,2561.8,2561.4,3.904]
[1729695551386,14.91322,2562.0,2561.5,4.70557]
[1729695551703,11.01,2562.0,2561.7,3.90356]
[1729695552392,11.01,2562.0,2561.8,3.90341]
[1729695552541,11.01,2562.0,2561.9,0.780697]
[1729695552746,11.01,2562.0,2561.7,3.90354]
[1729695552747,11.01,2562.1,2561.7,3.90354]
[1729695552970,11.01,2562.1,2561.7,7.80711]
[1729695553303,11.01,2562.1,2562.0,0.7923]
[1729695553788,14.91307,2562.1,2561.6,4.69601]
[1729695553953,14.91307,2562.1,2561.7,4.373181]
[1729695554348,14.91307,2562.1,2561.7,0.54766394]
[1729695554687,14.91307,2562.1,2561.7,0.469601]
[1729695555046,14.91307,2562.1,2561.7,0.5281514]
[1729695555278,18.81622,2562.1,2561.7,0.5281514]
[1729695555691,14.91307,2562.1,2561.7,0.5281514]
[1729695555892,3.9032,2562.0,2561.7,0.5281514]
[1729695556497,3.9032,2562.0,2561.7,0.0585504]
[1729695557167,3.90336,2561.9,2561.7,0.0585504]
[1729695557698,3.9035,2561.8,2561.7,0.0585504]
[1729695558359,3.7666,2562.4,2561.7,0.8439504]
[1729695558593,3.90315,2562.1,2561.7,0.8439504]
[1729695558801,3.90315,2562.1,2561.7,1.70910544]
[1729695559619,3.90315,2562.1,2561.7,5.61269544]
[1729695559906,7.66928,2562.4,2561.8,3.90337]
[1729695560073,7.66921,2562.4,2561.9,3.98128709]
[1729695560261,7.66921,2562.4,2562.0,0.78846571]
[1729695560262,3.90277,2562.3,2562.0,0.78846571]
[1729695560464,3.90261,2562.4,2562.0,0.78846571]
[1729695560670,7.80533,2562.4,2562.0,0.78846571]
[1729695560895,3.90283,2562.3,2562.0,0.78846571]
[1729695561308,3.90283,2562.3,2561.9,3.90326]
[1729695561619,3.90289,2562.2,2561.7,1.70910544]
[1729695561775,3.90289,2562.2,2561.7,5.61273544]
[1729695561976,3.90289,2562.2,2561.8,0.07805946]
[1729695562698,3.90276,2562.3,2561.8,3.98148946]
[1729695562989,3.90276,2562.3,2561.9,0.95942249]
[1729695563404,3.90274,2562.3,2561.9,0.95942249]
[1729695565817,3.90254,2562.5,2562.0,4.77918947]
[1729695565989,11.01,2563.0,2562.1,0.07805461]
[1729695565990,0.61093705,2562.3,2562.1,0.07805461]
[1729695566315,3.90236,2562.6,2562.2,3.90289]
[1729695566519,3.90236,2562.6,2562.2,3.90282]
[1729695567028,3.90209,2562.8,2562.4,4.70058]
[1729695567346,3.9022,2562.7,2562.4,0.798]
[1729695567622,3.90199,2562.8,2562.4,0.798]
[1729695567809,3.90199,2562.8,2562.4,4.77862429]
[1729695568114,3.90169,2563.0,2562.6,3.90216]
[1729695568344,3.90153,2563.1,2562.7,0.07803371]
[1729695568482,4.51230364,2563.1,2562.7,0.07803371]
[1729695568683,0.61077364,2563.1,2562.7,3.98015371]
[1729695568889,4.51230364,2563.1,2562.7,0.07803371]
[1729695569192,4.51230364,2563.1,2562.6,3.90219]
[1729695569408,4.51230364,2563.1,2562.6,4.80961234]
[1729695569596,3.90167,2563.0,2562.6,4.80961234]
[1729695570217,3.90132,2563.3,2562.7,4.75842267]
[1729695570423,3.90154,2563.1,2562.7,4.68039]
[1729695570921,3.56822552,2563.3,2562.7,0.7784]
[1729695571107,3.90185,2562.9,2562.7,0.7784]
[1729695571292,3.90152,2563.1,2562.7,0.7784]
[1729695572011,7.80314,2563.1,2562.7,0.7784]
[1729695572212,7.80314,2563.1,2562.7,1.56433012]
[1729695572411,3.90152,2563.1,2562.7,1.56433012]
[1729695572635,3.9017,2563.0,2562.7,1.56433012]
[1729695576235,3.9014,2563.2,2562.7,5.46645012]
[1729695576411,3.90154,2563.1,2562.7,1.56433012]
[1729695576605,3.90154,2563.1,2562.8,0.5525067]
[1729695577000,3.90124,2563.3,2562.8,4.53250717]
[1729695577237,3.90124,2563.3,2562.8,4.53243717]
[1729695577438,3.90124,2563.3,2562.8,4.4544067]
[1729695577648,3.90137,2563.2,2562.8,4.53243692]
[1729695578138,3.90137,2563.2,2562.9,0.53108369]
[1729695578322,3.90108,2563.4,2562.9,4.43284369]
[1729695578728,3.90108,2563.4,2563.0,4.72015]
[1729695578928,3.90108,2563.4,2563.0,4.79817572]
[1729695579141,3.90108,2563.4,2563.0,4.72015]
[1729695579364,3.90108,2563.4,2563.0,5.69070004]
[1729695579545,3.90108,2563.4,2563.0,1.78905004]
[1729695579705,3.90108,2563.4,2563.0,1.8670758]
[1729695579908,7.80225,2563.4,2563.0,0.8185]
[1729695580332,3.90123,2563.3,2563.0,0.8185]
[1729695581148,3.90108,2563.4,2563.0,0.8185]
[1729695581318,4.72157,2563.6,2563.0,4.72008]
[1729695581509,3.90122,2563.3,2563.0,0.8185]
[1729695581881,7.80223,2563.4,2563.0,1.290519]
[1729695582033,3.90107,2563.4,2563.0,1.290519]
[1729695582546,7.80226,2563.4,2563.0,1.290519]
[1729695582701,7.80223,2563.4,2563.0,1.290519]
[1729695582903,3.90093,2563.5,2563.1,3.9015]
[1729695583139,3.90093,2563.5,2563.1,4.49872317]
[1729695583542,3.90089,2563.6,2563.1,8.40013317]
[1729695583721,7.80178,2563.6,2563.2,0.07801945]
[1729695583913,3.90089,2563.6,2563.1,8.3220519]
[1729695584433,3.90086,2563.6,2563.1,4.4206119]
[1729695584638,7.80168,2563.6,2563.2,0.52391119]
[1729695584813,3.90077,2563.6,2563.2,0.52391119]
[1729695585134,3.90061,2563.7,2563.3,0.7983]
[1729695586423,3.90084,2563.6,2563.3,0.7983]
[1729695586627,3.90091,2563.5,2563.4,0.05851298]
[1729695587313,3.90084,2563.6,2563.4,0.05851298]
[1729695587513,7.80172,2563.6,2563.4,0.05851298]
[1729695587738,3.90048,2563.8,2563.4,4.03758818]
[1729695588058,3.90048,2563.8,2563.4,4.57356812]
[1729695588253,3.90048,2563.8,2563.4,4.49555292]
[1729695588471,3.90048,2563.8,2563.4,4.57356394]
[1729695588814,3.9003,2563.9,2563.4,0.67250394]
[1729695589010,3.90065,2563.7,2563.4,0.59449292]
[1729695590248,3.90065,2563.7,2563.4,0.53597994]
[1729695590581,3.90048,2563.8,2563.4,0.53597994]
[1729695590940,3.90065,2563.7,2563.4,0.53597994]
[1729695592951,3.90047,2563.8,2563.4,0.53597994]
[1729695593946,3.90061,2563.7,2563.4,0.53597994]
[1729695594855,7.80133,2563.7,2563.4,0.53597994]
[1729695595379,3.9008,2563.6,2563.4,0.53597994]
[1729695596282,3.90061,2563.7,2563.4,0.53597994]
[1729695596479,3.9008,2563.6,2563.3,0.7983]
[1729695596682,3.901,2563.5,2563.3,0.7983]
[1729695598079,3.9008,2563.6,2563.3,0.7983]
[1729695599086,3.9008,2563.6,2563.3,1.27606753]
[1729695599723,3.90093,2563.5,2563.3,1.27606753]
[1729695600366,3.9008,2563.6,2563.3,1.27606753]
[1729695600569,3.90094,2563.5,2563.3,1.27606753]
[1729695600770,3.9008,2563.6,2563.3,1.27606753]
[1729695601003,3.90098,2563.5,2563.3,1.27606753]
[1729695601373,3.9013,2563.3,2563.1,0.7898]
[1729695601571,3.90062,2563.7,2563.1,0.7898]
[1729695601572,3.90137,2563.2,2563.1,0.7898]
[1729695602414,3.9016,2563.1,2562.8,0.7903]
[1729695602570,3.90133,2563.3,2562.8,0.7903]
[1729695602771,3.90114,2563.4,2562.9,3.97977394]
[1729695602971,3.90075,2563.7,2563.1,3.90142]
[1729695603171,6.90076,2563.6,2563.1,3.90142]
[1729695603371,3.9007,2563.7,2563.1,3.90152]
[1729695603573,3.9007,2563.7,2563.2,3.90135]
[1729695603783,3.9007,2563.7,2563.2,4.760667]
[1729695604078,3.90109,2563.4,2563.0,0.7903]
[1729695604402,3.90176,2563.0,2562.7,0.7706]
[1729695604651,3.90175,2563.0,2562.7,0.7706]
[1729695605054,3.90184,2562.9,2562.7,0.7706]
[1729695605566,3.90169,2563.0,2562.7,0.7706]
[1729695605774,3.90169,2563.0,2562.5,0.07803399]
[1729695605775,3.90193,2562.9,2562.5,0.85943399]
[1729695605933,0.8119,2563.9,2563.2,0.7866]
[1729695606129,0.8119,2563.9,2563.2,4.68796]
[1729695606130,3.90067,2563.7,2563.2,4.68796]
[1729695606431,3.90078,2563.6,2563.2,0.7866]
[1729695606634,3.90091,2563.5,2563.0,0.8119]
[1729695606868,3.90118,2563.4,2563.0,0.8119]
[1729695607072,3.90129,2563.3,2563.0,0.8119]
[1729695607442,0.8035,2563.5,2563.0,0.8119]
[1729695607443,4.70449,2563.5,2563.0,4.79152549]
[1729695607644,3.90114,2563.4,2563.0,1.68122555]
[1729695607847,3.90087,2563.6,2563.1,3.90151]
[1729695608162,3.90092,2563.5,2563.0,5.66086104]
[1729695608369,3.90115,2563.4,2563.0,1.68122555]
[1729695608679,3.90092,2563.5,2563.0,0.8119]
[1729695608879,3.90123,2563.3,2563.0,0.8119]
[1729695609845,3.90108,2563.4,2563.0,0.8119]
[1729695610278,3.89977,2564.3,2563.8,3.90039]
[1729695610843,4.6515,2564.4,2563.9,3.90021]
[1729695611341,11.01,2564.5,2564.1,4.69533]
[1729695611584,14.90949,2564.5,2564.1,0.7954]
[1729695611886,14.90949,2564.5,2563.8,0.7667]
[1729695611887,3.89993,2564.2,2563.8,0.7667]
[1729695612193,3.90022,2564.0,2563.5,4.66753]
[1729695612477,3.90022,2564.0,2563.5,0.7667]
[1729695612683,3.90037,2563.9,2563.5,0.7667]
[1729695612885,3.90046,2563.8,2563.5,0.7667]
[1729695613092,3.90046,2563.8,2563.2,4.72654]
[1729695613395,3.90046,2563.8,2563.0,3.90157]
[1729695613396,3.90116,2563.4,2563.0,0.8253]
[1729695613744,3.90116,2563.4,2563.0,4.72697]
[1729695613940,3.90116,2563.4,2563.0,5.589842]
[1729695614387,3.90116,2563.4,2563.0,1.688172]
[1729695614692,7.46913552,2563.5,2563.0,0.8253]
[1729695614844,3.0,2564.3,2563.7,0.8012]
[1729695615179,3.9,2564.2,2563.7,4.70179]
[1729695615481,3.89969,2564.3,2563.8,3.90033]
[1729695615788,3.90002,2564.1,2563.7,4.70179]
[1729695615977,3.90002,2564.1,2563.7,0.8012]
[1729695616179,3.90019,2564.0,2563.7,0.8012]
[1729695616348,3.90032,2563.9,2563.5,3.9008]
[1729695616544,3.56822552,2564.1,2563.5,4.36645]
[1729695616747,15.72496,2564.4,2563.5,3.9008]
[1729695616748,3.90026,2564.0,2563.5,3.9008]
[1729695617060,3.90033,2563.9,2563.5,3.9008]
[1729695617259,3.90033,2563.9,2563.4,0.7557]
[1729695617645,0.61058736,2563.8,2563.4,4.65676]
[1729695618695,0.61058736,2563.8,2563.4,0.7557]
[1729695619249,4.51105736,2563.8,2563.4,0.7557]
[1729695619517,0.61058736,2563.8,2563.5,3.56822552]
[1729695619681,0.61058736,2563.8,2563.7,8.22583552]
[1729695619884,11.01,2564.7,2564.1,0.757]
[1729695620094,3.89932,2564.6,2564.1,4.65693]
[1729695620379,4.50977628,2564.6,2564.1,4.65693]
[1729695620580,4.50977628,2564.6,2564.1,0.757]
[1729695620581,3.8994,2564.5,2564.1,0.757]